[Event "African Championship (W)"]
[Site "followchess.com"]
[Date "2021.05.26"]
[Round "8"]
[White "Moaataz, Ayah"]
[Black "Nakabo, Peninah"]
[Result "1-0"]
[WhiteElo "2028"]
[BlackElo "1730"]
[ECO "A37"]
[WhiteFed "EGY"]
[BlackFed "UGA"]
[FCGameId "1121937845"]
[WhiteFideId "10615873"]
[BlackFideId "10004556"]
[TimeControl "7200+30"]

1. c4 {[%clk 1:30:58]} c5 {[%clk 1:26:46]} 2. g3 {[%clk 1:31:21]} g6 
{[%clk 1:26:56]} 3. Bg2 {[%clk 1:31:43]} Nc6 {[%clk 1:27:00]} 4. Nc3 
{[%clk 1:31:46]} Bg7 {[%clk 1:27:20]} 5. Nf3 {[%clk 1:31:32]} e5 
{[%clk 1:27:19]} 6. d3 {[%clk 1:31:55]} Nge7 {[%clk 1:27:35]} 7. O-O 
{[%clk 1:32:07]} O-O {[%clk 1:27:35]} 8. a3 {[%clk 1:32:31]} d6 {[%clk 1:27:51]} 
9. Rb1 {[%clk 1:32:47]} Be6 {[%clk 1:27:36]} 10. b4 {[%clk 1:31:25]} cxb4 
{[%clk 1:27:44]} 11. axb4 {[%clk 1:31:51]} a6 {[%clk 1:27:56]} 12. e4 
{[%clk 1:28:21]} Qd7 {[%clk 1:26:46]} 13. Nd5 Nc8 {[%clk 1:16:37]} 14. Bh6 
{[%clk 1:22:01]} Bh3 {[%clk 1:06:12]} 15. Nf6+ {[%clk 1:19:05]} Bxf6 
{[%clk 1:05:54]} 16. Bxf8 {[%clk 1:19:03]} Kxf8 {[%clk 1:05:45]} 17. Qd2 
{[%clk 1:19:00]} Bxg2 {[%clk 1:02:40]} 18. Kxg2 {[%clk 1:19:27]} Nd8 
{[%clk 0:53:06]} 19. Ra1 {[%clk 1:14:46]} Ne6 {[%clk 0:47:49]} 20. h3 
{[%clk 1:13:55]} b5 {[%clk 0:39:39]} 21. cxb5 {[%clk 1:12:54]} Qxb5 
{[%clk 0:39:56]} 22. Ra5 {[%clk 1:12:56]} Qb7 {[%clk 0:39:01]} 23. Rfa1 
{[%clk 1:11:27]} Nc7 {[%clk 0:37:35]} 24. h4 {[%clk 1:08:53]} d5 
{[%clk 0:34:12]} 25. h5 {[%clk 0:56:39]} dxe4 {[%clk 0:31:14]} 26. dxe4 
{[%clk 0:56:50]} Qxe4 {[%clk 0:28:04]} 27. Re1 {[%clk 0:55:39]} Qb7 
{[%clk 0:23:34]} 28. Qh6+ {[%clk 0:49:43]} Kg8 {[%clk 0:22:34]} 29. hxg6 
{[%clk 0:44:05]} fxg6 {[%clk 0:22:52]} 30. Qd2 {[%clk 0:38:52]} Nb5 
{[%clk 0:19:26]} 31. Re3 {[%clk 0:32:38]} Ncd6 {[%clk 0:17:38]} 32. Qa2+ Qf7 
{[%clk 0:17:14]} 33. Qxf7+ {[%clk 0:31:56]} Kxf7 {[%clk 0:17:36]} 34. Nxe5+ 
{[%clk 0:30:58]} Bxe5 {[%clk 0:17:41]} 35. Rxe5 {[%clk 0:31:26]} Kf6 
{[%clk 0:14:52]} 36. Rc5 {[%clk 0:31:19]} Nd4 {[%clk 0:13:01]} 37. Ra2 
{[%clk 0:29:52]} N6b5 {[%clk 0:12:32]} 38. g4 {[%clk 0:27:39]} Ke6 
{[%clk 0:12:22]} 39. Rc1 {[%clk 0:26:48]} Kd6 {[%clk 0:11:37]} 40. Rca1 
{[%clk 0:56:10]} Kd5 {[%clk 0:34:45]} 41. Rxa6 {[%clk 0:53:36]} Re8 
{[%clk 0:34:03]} 42. Rh1 {[%clk 0:53:35]} Re7 {[%clk 0:34:14]} 43. Ra8 
{[%clk 0:53:31]} Ne6 {[%clk 0:23:20]} 44. Rc1 {[%clk 0:51:42]} Kd4 
{[%clk 0:21:50]} 45. Kg3 Nc3 {[%clk 0:21:18]} 46. Rca1 {[%clk 0:48:09]} Ne2+ 
{[%clk 0:19:24]} 47. Kg2 {[%clk 0:47:33]} N2f4+ {[%clk 0:18:07]} 48. Kh2 
{[%clk 0:45:11]} Nd3 {[%clk 0:18:11]} 49. Kg3 {[%clk 0:42:57]} Rf7 
{[%clk 0:17:12]} 50. R1a7 {[%clk 0:42:40]} Rf6 {[%clk 0:12:24]} 51. Rd7+ 
{[%clk 0:41:00]} Kc3 {[%clk 0:11:52]} 52. Ra3+ {[%clk 0:40:37]} Kxb4 
{[%clk 0:11:52]} 53. Raxd3 {[%clk 0:40:32]} Nc5 {[%clk 0:11:47]} 54. R7d4+ 
{[%clk 0:40:51]} Kb5 {[%clk 0:11:26]} 55. Rd1 {[%clk 0:40:44]} h5 
{[%clk 0:08:53]} 56. gxh5 {[%clk 0:33:36]} gxh5 {[%clk 0:09:03]} 57. Rh1 
{[%clk 0:33:48]} Rg6+ {[%clk 0:07:20]} 58. Kf3 {[%clk 0:33:56]} Rg5 
{[%clk 0:06:22]} 59. Rdh4 {[%clk 0:33:47]} Rf5+ {[%clk 0:06:10]} 60. Ke2 
{[%clk 0:33:46]} Re5+ {[%clk 0:05:52]} 61. Kf1 Re8 {[%clk 0:05:44]} 62. Rxh5 
{[%clk 0:33:12]} Kc4 {[%clk 0:05:38]} 63. R1h4+ {[%clk 0:33:24]} Kb5 
{[%clk 0:05:26]} 64. Rd4 {[%clk 0:31:44]} Rc8 {[%clk 0:05:04]} 65. f4 
{[%clk 0:30:34]} Kc6 {[%clk 0:05:07]} 66. Rh6+ {[%clk 0:30:20]} Kb5 
{[%clk 0:05:16]} 67. Kf2 {[%clk 0:30:04]} Ra8 {[%clk 0:03:29]} 68. Kf3 
{[%clk 0:24:04]} Rf8 {[%clk 0:03:03]} 69. Rh5 {[%clk 0:23:29]} Rg8 
{[%clk 0:02:45]} 70. Rdd5 {[%clk 0:23:30]} Rc8 71. Kg4 Kc4 {[%clk 0:02:00]} 72. 
Rxc5+ {[%clk 0:22:40]} Rxc5 {[%clk 0:02:23]} 73. Rxc5+ {[%clk 0:23:08]} Kxc5 
{[%clk 0:02:48]} 74. Kg5 {[%clk 0:22:50]} Kd6 {[%clk 0:02:00]} 75. Kf6 
{[%clk 0:22:54]} Kd7 {[%clk 0:02:16]} 76. f5 {[%clk 0:23:18]} Ke8 
{[%clk 0:02:20]} 77. Kg7 {[%clk 0:23:43]} 1-0

[Event "African Championship (W)"]
[Site "followchess.com"]
[Date "2021.05.26"]
[Round "8"]
[White "Wafa, Shahenda"]
[Black "Badenhorst, Chloe"]
[Result "1-0"]
[WhiteElo "2145"]
[BlackElo "1316"]
[ECO "B33"]
[WhiteFed "EGY"]
[BlackFed "RSA"]
[FCGameId "1482541803"]
[WhiteFideId "10609962"]
[BlackFideId "14339463"]
[TimeControl "7200+30"]

1. e4 {[%clk 1:29:39]} c5 {[%clk 1:30:53]} 2. Nf3 {[%clk 1:29:57]} Nc6 
{[%clk 1:31:17]} 3. d4 {[%clk 1:30:19]} cxd4 {[%clk 1:31:38]} 4. Nxd4 
{[%clk 1:30:43]} Nf6 {[%clk 1:32:00]} 5. Nc3 {[%clk 1:31:06]} e5 
{[%clk 1:32:14]} 6. Ndb5 {[%clk 1:31:29]} d6 {[%clk 1:32:36]} 7. Nd5 
{[%clk 1:31:51]} Nxd5 {[%clk 1:32:58]} 8. exd5 {[%clk 1:32:17]} Nb8 
{[%clk 1:33:21]} 9. c4 {[%clk 1:32:37]} Be7 {[%clk 1:33:40]} 10. Bd3 
{[%clk 1:32:26]} O-O {[%clk 1:33:58]} 11. O-O {[%clk 1:32:40]} f5 
{[%clk 1:34:17]} 12. f3 {[%clk 1:32:38]} Nd7 {[%clk 1:34:04]} 13. Be3 
{[%clk 1:32:20]} a6 {[%clk 1:34:23]} 14. Nc3 {[%clk 1:32:27]} Bg5 
{[%clk 1:34:25]} 15. Bf2 {[%clk 1:32:26]} Qf6 {[%clk 1:32:16]} 16. Na4 
{[%clk 1:28:49]} Qh6 {[%clk 1:28:49]} 17. Qc2 {[%clk 1:20:41]} g6 
{[%clk 1:25:56]} 18. c5 {[%clk 1:17:08]} dxc5 {[%clk 1:16:51]} 19. Nxc5 
{[%clk 1:16:39]} Nxc5 {[%clk 1:11:22]} 20. Qxc5 {[%clk 1:16:15]} Qg7 
{[%clk 1:08:56]} 21. Rfe1 {[%clk 1:04:55]} Bf6 {[%clk 1:06:08]} 22. Rac1 
{[%clk 1:01:35]} b5 {[%clk 0:55:44]} 23. Qb6 {[%clk 0:40:28]} Qb7 
{[%clk 0:45:56]} 24. Red1 {[%clk 0:28:08]} Bg5 {[%clk 0:29:14]} 25. Rc3 
{[%clk 0:21:47]} Rb8 {[%clk 0:18:50]} 26. Qd6 {[%clk 0:14:13]} Be7 
{[%clk 0:16:49]} 27. Qxe5 {[%clk 0:13:32]} Bf6 {[%clk 0:14:57]} 28. Qe1 
{[%clk 0:13:30]} Bxc3 {[%clk 0:11:36]} 29. Qxc3 {[%clk 0:13:53]} Qg7 
{[%clk 0:10:11]} 30. Bd4 {[%clk 0:13:45]} Qf7 {[%clk 0:09:38]} 31. Be5 
{[%clk 0:12:44]} Bd7 {[%clk 0:06:03]} 32. Bxb8 {[%clk 0:11:36]} Rxb8 
{[%clk 0:06:27]} 33. Bc2 {[%clk 0:11:26]} Rc8 {[%clk 0:06:08]} 34. Qd2 
{[%clk 0:10:55]} Qf6 {[%clk 0:05:59]} 35. Bb3 {[%clk 0:11:03]} Qd6 
{[%clk 0:04:45]} 36. Re1 {[%clk 0:04:43]} b4 {[%clk 0:03:45]} 37. Qd4 
{[%clk 0:03:05]} a5 {[%clk 0:02:59]} 38. Bc4 {[%clk 0:02:30]} Rc7 
{[%clk 0:02:06]} 39. b3 {[%clk 0:02:38]} Rc8 {[%clk 0:01:52]} 40. Qa7 
{[%clk 0:31:48]} a4 {[%clk 0:31:05]} 41. Qd4 {[%clk 0:31:05]} axb3 
{[%clk 0:30:14]} 42. axb3 {[%clk 0:31:02]} Ra8 {[%clk 0:29:41]} 43. Re7 
{[%clk 0:30:14]} Qxe7 {[%clk 0:27:08]} 44. d6+ {[%clk 0:30:39]} Qf7 
{[%clk 0:27:15]} 45. Bxf7+ {[%clk 0:31:01]} Kxf7 {[%clk 0:27:40]} 46. Qd5+ 
{[%clk 0:31:27]} 1-0

[Event "African Championship (W)"]
[Site "followchess.com"]
[Date "2021.05.26"]
[Round "8"]
[White "Marochkina, Nadezhda Valerevna"]
[Black "Charinda, Kudzanayi"]
[Result "0-1"]
[WhiteElo "1639"]
[BlackElo "1702"]
[ECO "E10"]
[WhiteFed "SEN"]
[BlackFed "ZIM"]
[FCGameId "155940159"]
[WhiteFideId "19900490"]
[BlackFideId "11000538"]
[TimeControl "7200+30"]

1. d4 {[%clk 1:30:54]} Nf6 {[%clk 1:30:11]} 2. c4 {[%clk 1:31:08]} e6 
{[%clk 1:30:36]} 3. Nf3 {[%clk 1:31:25]} c5 {[%clk 1:30:31]} 4. e3 
{[%clk 1:31:39]} Be7 {[%clk 1:29:54]} 5. Bd3 {[%clk 1:31:55]} cxd4 
{[%clk 1:29:41]} 6. Nxd4 {[%clk 1:32:12]} d6 {[%clk 1:29:12]} 7. Nd2 
{[%clk 1:32:08]} Bd7 {[%clk 1:29:19]} 8. O-O {[%clk 1:32:12]} Nc6 
{[%clk 1:29:28]} 9. N2f3 {[%clk 1:32:14]} O-O {[%clk 1:28:56]} 10. b3 
{[%clk 1:32:15]} Re8 {[%clk 1:26:42]} 11. Ba3 {[%clk 1:32:04]} e5 
{[%clk 1:25:59]} 12. Nxc6 {[%clk 1:31:57]} Bxc6 {[%clk 1:26:20]} 13. Be2 
{[%clk 1:31:27]} Qc7 {[%clk 1:25:20]} 14. Nd2 {[%clk 1:29:03]} Rad8 
{[%clk 1:24:58]} 15. Qc2 {[%clk 1:29:11]} d5 {[%clk 1:24:32]} 16. Bxe7 
{[%clk 1:29:09]} Qxe7 {[%clk 1:24:51]} 17. cxd5 {[%clk 1:25:48]} Nxd5 
{[%clk 1:25:03]} 18. Nc4 {[%clk 1:21:28]} Qg5 {[%clk 1:24:36]} 19. Bf3 
{[%clk 1:08:51]} b5 {[%clk 1:12:03]} 20. Nxe5 {[%clk 0:47:41]} Nb4 
{[%clk 1:11:36]} 21. Qc3 {[%clk 0:45:35]} Qxe5 {[%clk 1:07:51]} 22. Qxb4 
{[%clk 0:45:47]} Bxf3 {[%clk 1:08:00]} 23. gxf3 {[%clk 0:45:55]} Re6 
{[%clk 1:08:13]} 24. Qh4 {[%clk 0:41:49]} Rdd6 {[%clk 1:02:41]} 25. Rad1 
{[%clk 0:41:04]} Rg6+ {[%clk 0:56:00]} 26. Kh1 {[%clk 0:41:18]} h6 
{[%clk 0:54:09]} 27. a4 {[%clk 0:33:58]} Rdf6 {[%clk 0:53:26]} 28. Qe4 
{[%clk 0:29:54]} Qh5 {[%clk 0:44:36]} 29. f4 {[%clk 0:26:16]} bxa4 
{[%clk 0:37:11]} 30. bxa4 {[%clk 0:26:39]} Ra6 {[%clk 0:35:53]} 31. Rd4 
{[%clk 0:17:22]} Qh3 {[%clk 0:34:14]} 32. Ra1 {[%clk 0:15:04]} Ra5 
{[%clk 0:31:35]} 33. Rd5 {[%clk 0:14:57]} Rxa4 {[%clk 0:29:23]} 0-1

[Event "African Championship (W)"]
[Site "followchess.com"]
[Date "2021.05.26"]
[Round "8"]
[White "Ndirangu, Joyce Nyaruai"]
[Black "Ogbiyoyo, Perpetual Eloho"]
[Result "0-1"]
[WhiteElo "1659"]
[BlackElo "1880"]
[ECO "A45"]
[WhiteFed "KEN"]
[BlackFed "NGR"]
[FCGameId "910430671"]
[WhiteFideId "10802886"]
[BlackFideId "8509050"]
[TimeControl "7200+30"]

1. d4 {[%clk 1:30:57]} Nf6 {[%clk 1:30:33]} 2. Bf4 {[%clk 1:31:24]} c5 
{[%clk 1:30:39]} 3. e3 {[%clk 1:30:30]} Nd5 {[%clk 1:30:53]} 4. Bg3 
{[%clk 1:23:29]} Qb6 {[%clk 1:31:09]} 5. b3 {[%clk 1:23:47]} cxd4 
{[%clk 1:30:54]} 6. exd4 {[%clk 1:23:29]} Nc6 {[%clk 1:30:58]} 7. c3 
{[%clk 1:19:30]} d6 {[%clk 1:25:42]} 8. Bc4 {[%clk 1:19:21]} Nf6 
{[%clk 1:24:41]} 9. Nd2 {[%clk 1:17:37]} d5 {[%clk 1:22:31]} 10. Bd3 
{[%clk 1:17:49]} Bg4 {[%clk 1:21:50]} 11. Ne2 {[%clk 1:12:16]} e6 
{[%clk 1:20:38]} 12. O-O {[%clk 1:12:01]} Be7 {[%clk 1:20:37]} 13. Qe1 
{[%clk 1:03:22]} O-O {[%clk 1:14:34]} 14. h3 {[%clk 0:55:59]} Bh5 
{[%clk 1:14:54]} 15. Nf4 {[%clk 0:51:24]} Bg6 {[%clk 1:14:14]} 16. Nf3 
{[%clk 0:50:24]} Be4 {[%clk 1:11:45]} 17. Qe3 {[%clk 0:46:53]} Rfe8 
{[%clk 1:00:40]} 18. Ng5 {[%clk 0:44:12]} e5 {[%clk 0:45:13]} 19. dxe5 
{[%clk 0:29:22]} Bc5 {[%clk 0:45:19]} 20. Qd2 {[%clk 0:29:05]} Rxe5 
{[%clk 0:44:38]} 21. Nxe4 {[%clk 0:28:19]} dxe4 {[%clk 0:44:12]} 22. b4 
{[%clk 0:22:30]} Bxb4 {[%clk 0:34:57]} 23. cxb4 {[%clk 0:18:05]} exd3 
{[%clk 0:35:10]} 24. Nxd3 {[%clk 0:17:38]} Rd5 {[%clk 0:34:04]} 25. Qc2 
{[%clk 0:13:55]} Nxb4 {[%clk 0:29:49]} 26. Nxb4 {[%clk 0:14:19]} Qxb4 
{[%clk 0:30:07]} 27. Rab1 {[%clk 0:14:37]} Qe7 {[%clk 0:30:02]} 28. Qb3 
{[%clk 0:14:25]} b6 {[%clk 0:29:56]} 29. Rfe1 {[%clk 0:14:37]} Qd7 
{[%clk 0:30:13]} 30. Qa3 {[%clk 0:14:22]} Rd3 {[%clk 0:29:06]} 31. Qa6 
{[%clk 0:13:55]} Re8 {[%clk 0:27:01]} 32. Rec1 {[%clk 0:13:59]} Qd4 
{[%clk 0:26:12]} 33. Kh2 {[%clk 0:10:08]} h5 {[%clk 0:23:42]} 34. Rc4 
{[%clk 0:08:27]} Qd5 {[%clk 0:22:29]} 35. Rbc1 {[%clk 0:07:14]} Re7 
{[%clk 0:16:43]} 36. Bc7 {[%clk 0:03:26]} Ne4 {[%clk 0:15:35]} 37. Bg3 
{[%clk 0:03:22]} Nxg3 38. fxg3 Ree3 {[%clk 0:13:13]} 39. Qc8+ {[%clk 0:02:08]} 
Kh7 {[%clk 0:13:14]} 40. Rf4 {[%clk 0:01:20]} Rxg3 {[%clk 0:12:45]} 41. Qf5+ 
{[%clk 0:31:45]} Qxf5 42. Rxf5 Kg6 {[%clk 0:42:17]} 43. Rf2 {[%clk 0:31:15]} Ra3 
{[%clk 0:42:21]} 44. Rc7 {[%clk 0:30:56]} f6 {[%clk 0:42:26]} 45. Rd2 
{[%clk 0:29:31]} Rgc3 {[%clk 0:42:36]} 46. Rb7 {[%clk 0:29:28]} h4 
{[%clk 0:39:28]} 47. Rdd7 {[%clk 0:25:23]} Rxa2 48. Rxg7+ Kf5 49. Rg4 Rcc2 50. 
Rh7 a5 51. Rhxh4 Rf2 {[%clk 0:36:18]} 52. Rh5+ {[%clk 0:25:48]} Ke6 
{[%clk 0:36:32]} 53. Rb5 {[%clk 0:26:17]} Rab2 {[%clk 0:36:29]} 54. Rh5 
{[%clk 0:23:57]} b5 {[%clk 0:36:21]} 55. Rh8 {[%clk 0:24:12]} b4 56. Ra8 Ra2 
{[%clk 0:34:47]} 57. Rb8 {[%clk 0:23:57]} Ra3 {[%clk 0:33:29]} 58. h4 
{[%clk 0:22:23]} Kf5 {[%clk 0:33:29]} 59. Rg7 b3 60. h5 Rf1 61. h6 Raa1 62. h7 
Rh1+ 63. Kg3 {[%clk 0:22:37]} b2 0-1

[Event "African Championship (W)"]
[Site "followchess.com"]
[Date "2021.05.25"]
[Round "7"]
[White "Nassr, Lina"]
[Black "Mwango , Lorita"]
[Result "1-0"]
[WhiteElo "1960"]
[BlackElo "1912"]
[ECO "B10"]
[WhiteFed "ALG"]
[BlackFed "ZAM"]
[FCGameId "1091891756"]
[WhiteFideId "7908075"]
[BlackFideId "8700478"]
[TimeControl "7200+30"]

1. e4 {[%clk 1:30:49]} c6 {[%clk 1:30:42]} 2. c4 {[%clk 1:31:02]} d5 
{[%clk 1:30:03]} 3. exd5 {[%clk 1:31:19]} cxd5 {[%clk 1:30:24]} 4. cxd5 
{[%clk 1:31:40]} Qxd5 {[%clk 1:30:42]} 5. Nc3 {[%clk 1:31:54]} Qd8 
{[%clk 1:30:33]} 6. Bc4 {[%clk 1:31:58]} e6 {[%clk 1:30:34]} 7. Nf3 
{[%clk 1:31:36]} Nf6 {[%clk 1:30:52]} 8. d4 {[%clk 1:31:08]} Bb4 
{[%clk 1:30:35]} 9. O-O {[%clk 1:27:22]} O-O {[%clk 1:30:58]} 10. a3 
{[%clk 1:25:10]} Bd6 {[%clk 1:28:33]} 11. Re1 {[%clk 1:21:07]} a6 
{[%clk 1:27:55]} 12. Qd3 {[%clk 1:14:15]} b5 {[%clk 1:26:55]} 13. Ba2 
{[%clk 1:14:10]} Bb7 {[%clk 1:27:09]} 14. Bg5 {[%clk 1:11:00]} Be7 
{[%clk 1:23:08]} 15. Rad1 {[%clk 1:03:53]} Ra7 {[%clk 1:14:43]} 16. Ne5 
{[%clk 0:55:59]} Bd5 {[%clk 1:03:29]} 17. Nxd5 {[%clk 0:49:48]} Nxd5 
{[%clk 1:03:23]} 18. Bb1 {[%clk 0:48:13]} g6 {[%clk 1:01:01]} 19. Bh6 
{[%clk 0:47:38]} Re8 {[%clk 1:00:51]} 20. Qg3 {[%clk 0:45:22]} Bf6 
{[%clk 0:58:34]} 21. Be4 {[%clk 0:40:33]} Bg7 {[%clk 0:56:14]} 22. Bxg7 
{[%clk 0:35:21]} Kxg7 {[%clk 0:56:27]} 23. h4 {[%clk 0:34:47]} Nf6 
{[%clk 0:56:04]} 24. Bf3 {[%clk 0:34:04]} h5 {[%clk 0:52:23]} 25. Qf4 
{[%clk 0:29:11]} Nd5 {[%clk 0:50:34]} 26. Qd2 {[%clk 0:25:00]} Rc7 
{[%clk 0:38:32]} 27. g3 {[%clk 0:19:52]} Nc6 {[%clk 0:38:13]} 28. Rc1 
{[%clk 0:17:29]} Nce7 {[%clk 0:36:40]} 29. Nd3 {[%clk 0:15:31]} Qd6 
{[%clk 0:34:21]} 30. Nc5 {[%clk 0:14:40]} Rec8 {[%clk 0:32:15]} 31. Qg5 
{[%clk 0:13:06]} Rh8 {[%clk 0:25:17]} 32. Ne4 {[%clk 0:09:38]} Qd8 
{[%clk 0:14:54]} 33. Qe5+ {[%clk 0:08:39]} Kh6 {[%clk 0:14:37]} 34. Rxc7 
{[%clk 0:04:47]} Nxc7 {[%clk 0:14:01]} 35. Bxh5 {[%clk 0:04:28]} Ned5 
{[%clk 0:10:38]} 36. Bf3 {[%clk 0:02:11]} f6 {[%clk 0:06:50]} 37. Qd6 
{[%clk 0:02:30]} Qxd6 {[%clk 0:06:53]} 38. Nxd6 {[%clk 0:02:58]} Rh7 
{[%clk 0:07:04]} 39. Ne4 {[%clk 0:01:20]} Rd7 {[%clk 0:05:14]} 40. Nc5 
{[%clk 0:31:09]} Rd6 {[%clk 0:35:29]} 41. Bxd5 {[%clk 0:29:07]} exd5 
{[%clk 0:35:46]} 42. Re7 {[%clk 0:28:53]} Rc6 {[%clk 0:36:07]} 43. Rd7 
{[%clk 0:24:26]} g5 {[%clk 0:36:05]} 44. Kg2 {[%clk 0:22:23]} Kg6 
{[%clk 0:34:54]} 45. Kf3 {[%clk 0:17:57]} a5 {[%clk 0:18:46]} 46. hxg5 
{[%clk 0:16:48]} fxg5 {[%clk 0:18:04]} 47. Nd3 {[%clk 0:16:38]} Kf5 
{[%clk 0:14:30]} 48. Ne5 {[%clk 0:10:45]} Rc2 {[%clk 0:10:49]} 49. Rd6 
{[%clk 0:09:56]} Ne6 {[%clk 0:10:03]} 50. Rxd5 {[%clk 0:07:33]} Nxd4+ 
{[%clk 0:10:01]} 51. Ke3 {[%clk 0:04:05]} Ke6 {[%clk 0:05:55]} 52. Kxd4 
{[%clk 0:03:47]} Rd2+ {[%clk 0:06:17]} 53. Nd3 {[%clk 0:04:07]} Rxd3+ 
{[%clk 0:06:44]} 54. Kxd3 {[%clk 0:04:30]} Kxd5 {[%clk 0:07:13]} 55. f4 
{[%clk 0:04:49]} gxf4 {[%clk 0:02:51]} 56. gxf4 {[%clk 0:05:14]} Kc5 
{[%clk 0:03:16]} 57. b3 {[%clk 0:03:36]} a4 {[%clk 0:02:27]} 58. bxa4 
{[%clk 0:03:17]} bxa4 {[%clk 0:02:51]} 59. Kc3 {[%clk 0:03:29]} Kd5 
{[%clk 0:03:04]} 60. Kb4 {[%clk 0:03:50]} Ke4 {[%clk 0:03:19]} 61. Kxa4 
{[%clk 0:04:13]} Kxf4 {[%clk 0:03:47]} 62. Kb5 {[%clk 0:04:13]} Ke5 
{[%clk 0:03:48]} 63. Kc6 {[%clk 0:04:03]} Ke6 {[%clk 0:03:15]} 64. a4 
{[%clk 0:04:25]} Ke7 {[%clk 0:03:43]} 65. Kd5 1-0

[Event "African Championship (W)"]
[Site "followchess.com"]
[Date "2021.05.25"]
[Round "7"]
[White "Charinda, Kudzanayi"]
[Black "February, Jesse Nikki"]
[Result "0-1"]
[WhiteElo "1702"]
[BlackElo "1824"]
[ECO "B90"]
[WhiteFed "ZIM"]
[BlackFed "RSA"]
[FCGameId "438953737"]
[WhiteFideId "11000538"]
[BlackFideId "14312336"]
[TimeControl "7200+30"]

1. e4 {[%clk 1:30:33]} c5 {[%clk 1:30:24]} 2. Nf3 {[%clk 1:30:20]} d6 
{[%clk 1:30:07]} 3. d4 {[%clk 1:30:12]} cxd4 {[%clk 1:30:05]} 4. Nxd4 
{[%clk 1:30:32]} Nf6 {[%clk 1:30:12]} 5. Nc3 {[%clk 1:30:24]} a6 
{[%clk 1:30:13]} 6. Be3 {[%clk 1:27:10]} e6 {[%clk 1:29:15]} 7. Bd3 
{[%clk 1:25:02]} Be7 {[%clk 1:28:12]} 8. O-O {[%clk 1:23:27]} b5 
{[%clk 1:25:53]} 9. f4 {[%clk 1:18:23]} Bb7 {[%clk 1:23:31]} 10. e5 
{[%clk 1:13:18]} Nd5 {[%clk 1:17:01]} 11. Nxd5 {[%clk 1:11:14]} Bxd5 
{[%clk 1:16:52]} 12. Qg4 {[%clk 1:09:12]} g6 {[%clk 1:15:37]} 13. Rad1 
{[%clk 1:07:59]} Nd7 {[%clk 1:12:30]} 14. exd6 {[%clk 0:59:52]} Bxd6 
{[%clk 1:11:30]} 15. b3 {[%clk 0:58:42]} Rc8 {[%clk 1:03:13]} 16. c4 
{[%clk 0:51:05]} bxc4 {[%clk 0:53:23]} 17. bxc4 {[%clk 0:51:28]} Bxc4 
{[%clk 0:39:55]} 18. Bxc4 {[%clk 0:51:14]} Rxc4 {[%clk 0:40:16]} 19. Nxe6 
{[%clk 0:46:59]} Qe7 {[%clk 0:39:40]} 20. Bd4 {[%clk 0:45:46]} Be5 
{[%clk 0:26:48]} 21. Ng7+ {[%clk 0:29:34]} Bxg7 {[%clk 0:08:09]} 22. Bxg7 
{[%clk 0:29:21]} f5 {[%clk 0:08:23]} 23. Rde1 {[%clk 0:13:33]} fxg4 
{[%clk 0:06:26]} 24. Rxe7+ {[%clk 0:13:53]} Kxe7 {[%clk 0:06:50]} 25. Bxh8 
{[%clk 0:14:02]} Rc2 {[%clk 0:05:57]} 26. Rf2 {[%clk 0:13:15]} Rc8 
{[%clk 0:04:17]} 27. Bd4 {[%clk 0:11:58]} Ke6 {[%clk 0:03:47]} 28. g3 
{[%clk 0:11:56]} Kd5 {[%clk 0:03:36]} 29. Bg7 {[%clk 0:10:06]} Ke4 
{[%clk 0:03:12]} 30. Kg2 {[%clk 0:09:23]} Nb6 {[%clk 0:02:42]} 31. Re2+ 
{[%clk 0:05:22]} Kd3 {[%clk 0:02:50]} 32. Re6 {[%clk 0:04:31]} Rc2+ 
{[%clk 0:02:27]} 33. Kg1 {[%clk 0:04:08]} Nd5 {[%clk 0:02:13]} 34. Rd6 
{[%clk 0:03:24]} Ke4 {[%clk 0:02:14]} 35. Rxa6 {[%clk 0:02:19]} Ne3 
{[%clk 0:01:01]} 36. Rb6 {[%clk 0:00:38]} Kf3 {[%clk 0:00:42]} 37. Rb1 
{[%clk 0:00:54]} Rg2+ {[%clk 0:00:43]} 38. Kh1 {[%clk 0:00:51]} Rxa2 
{[%clk 0:00:50]} 39. Bd4 {[%clk 0:00:59]} Re2 {[%clk 0:00:33]} 40. Bxe3 
{[%clk 0:30:49]} Kxe3 {[%clk 0:30:36]} 41. Kg1 {[%clk 0:30:01]} Kf3 
{[%clk 0:28:37]} 42. Rb3+ {[%clk 0:29:08]} Re3 {[%clk 0:28:54]} 43. Rxe3+ 
{[%clk 0:25:49]} Kxe3 {[%clk 0:29:17]} 44. Kg2 {[%clk 0:25:44]} Ke2 
{[%clk 0:29:28]} 45. h3 {[%clk 0:24:52]} h5 {[%clk 0:29:11]} 46. Kh1 
{[%clk 0:13:45]} Kf3 {[%clk 0:28:22]} 47. hxg4 {[%clk 0:12:11]} hxg4 
{[%clk 0:28:44]} 48. Kh2 {[%clk 0:12:07]} Kf2 {[%clk 0:29:09]} 49. Kh1 
{[%clk 0:12:09]} Kxg3 {[%clk 0:29:33]} 50. Kg1 {[%clk 0:11:58]} Kxf4 
{[%clk 0:29:58]} 51. Kf2 {[%clk 0:11:02]} g3+ {[%clk 0:30:18]} 52. Kg2 
{[%clk 0:09:55]} Kg4 {[%clk 0:30:37]} 53. Kg1 {[%clk 0:10:02]} Kh3 
{[%clk 0:31:02]} 54. Kh1 {[%clk 0:09:26]} g2+ {[%clk 0:31:19]} 55. Kg1 
{[%clk 0:09:48]} g5 {[%clk 0:31:42]} 0-1